[Event "Titled Tuesday Blitz July 13 2021"]
[White "harlem4brew"]
[Black "Rodchenkov, Vitaly"]
[BlackFideId "4152964"]
[WhiteElo "2427"]
[BlackElo "2337"]
[Result "1-0"]
[Round "09"]
[TimeControl "180+1"]
[Date "2021.07.13"]
[WhiteClock "0:01:24"]
[BlackClock "0:00:31"]

1. e4 {[%clk 0:03:00]}  c5 {[%clk 0:02:59]} 2. Nf3 {[%clk 0:03:00]}  d6 {[%clk 0:02:59]} 3. d4 {[%clk 0:03:00]}  cxd4 {[%clk 0:03:00]} 4. Nxd4 {[%clk 0:02:58]}  Nf6 {[%clk 0:03:00]} 5. Nc3 {[%clk 0:02:57]}  a6 {[%clk 0:03:01]} 6. Bg5 {[%clk 0:02:52]}  Nbd7 {[%clk 0:02:58]} 7. g3 {[%clk 0:02:52]}  h6 {[%clk 0:02:57]} 8. Be3 {[%clk 0:02:51]}  g6 {[%clk 0:02:50]} 9. Bg2 {[%clk 0:02:50]}  Bg7 {[%clk 0:02:50]} 10. O-O {[%clk 0:02:49]}  O-O {[%clk 0:02:51]} 11. h3 {[%clk 0:02:47]}  Qc7 {[%clk 0:02:48]} 12. f4 {[%clk 0:02:43]}  Nb6 {[%clk 0:02:45]} 13. Kh1 {[%clk 0:02:36]}  Nc4 {[%clk 0:02:45]} 14. Bc1 {[%clk 0:02:35]}  b5 {[%clk 0:02:27]} 15. b3 {[%clk 0:02:32]}  Nb6 {[%clk 0:02:25]} 16. Bb2 {[%clk 0:02:32]}  Bb7 {[%clk 0:02:25]} 17. Qe2 {[%clk 0:02:31]}  e5 {[%clk 0:02:22]} 18. Ndxb5 {[%clk 0:02:25]}  axb5 {[%clk 0:02:21]} 19. Nxb5 {[%clk 0:02:26]}  Qc5 {[%clk 0:02:18]} 20. Nxd6 {[%clk 0:02:26]}  Qxd6 {[%clk 0:02:04]} 21. fxe5 {[%clk 0:02:25]}  Qe6 {[%clk 0:01:52]} 22. exf6 {[%clk 0:02:24]}  Bh8 {[%clk 0:01:52]} 23. c4 {[%clk 0:02:23]}  Rfe8 {[%clk 0:01:50]} 24. e5 {[%clk 0:02:22]}  Bxg2+ {[%clk 0:01:46]} 25. Qxg2 {[%clk 0:02:23]}  Nd7 {[%clk 0:01:46]} 26. Rfe1 {[%clk 0:02:22]}  Nc5 {[%clk 0:01:27]} 27. Bd4 {[%clk 0:02:14]}  Nd3 {[%clk 0:01:18]} 28. Re3 {[%clk 0:02:12]}  Nb4 {[%clk 0:01:18]} 29. Bc3 {[%clk 0:02:08]}  Nc2 {[%clk 0:01:17]} 30. Qxc2 {[%clk 0:02:07]}  Qxh3+ {[%clk 0:01:15]} 31. Qh2 {[%clk 0:02:07]}  Qxh2+ {[%clk 0:01:10]} 32. Kxh2 {[%clk 0:02:07]}  Bxf6 {[%clk 0:01:11]} 33. Re2 {[%clk 0:02:03]}  h5 {[%clk 0:01:08]} 34. Rae1 {[%clk 0:02:02]}  Bg5 {[%clk 0:01:05]} 35. Kh3 {[%clk 0:02:00]}  Re6 {[%clk 0:01:04]} 36. g4 {[%clk 0:01:57]}  hxg4+ {[%clk 0:01:04]} 37. Kxg4 {[%clk 0:01:58]}  Be7 {[%clk 0:01:04]} 38. Rh2 {[%clk 0:01:46]}  Bf8 {[%clk 0:00:59]} 39. Reh1 {[%clk 0:01:42]}  Bg7 {[%clk 0:00:59]} 40. Kf4 {[%clk 0:01:38]}  Rd8 {[%clk 0:00:56]} 41. Rh3 {[%clk 0:01:36]}  Rc8 {[%clk 0:00:46]} 42. Rd3 {[%clk 0:01:34]}  Bf8 {[%clk 0:00:38]} 43. Rd5 {[%clk 0:01:31]}  Kg7 {[%clk 0:00:36]} 44. Rh2 {[%clk 0:01:30]}  Be7 {[%clk 0:00:36]} 45. Rhd2 {[%clk 0:01:28]}  g5+ {[%clk 0:00:36]} 46. Kf5 {[%clk 0:01:28]}  Rh8 {[%clk 0:00:35]} 47. Rd6 {[%clk 0:01:25]}  Bxd6 {[%clk 0:00:31]} 48. exd6+ {[%clk 0:01:24]}  f6 {[%clk 0:00:31]} 49. Kxe6 {[%clk 0:01:24]} 1-0


[Site "https://www.chess.com"]

[Event "Titled Tuesday Blitz July 13 2021"]
[White "ketster"]
[Black "Barp, Alberto"]
[BlackFideId "872555"]
[WhiteElo "2457"]
[BlackElo "2229"]
[Result "0-1"]
[Round "09"]
[TimeControl "180+1"]
[Date "2021.07.13"]
[WhiteClock "0:00:07"]
[BlackClock "0:00:38"]

1. d4 {[%clk 0:03:00]}  Nf6 {[%clk 0:02:59]} 2. c4 {[%clk 0:02:57]}  e6 {[%clk 0:02:59]} 3. Nc3 {[%clk 0:02:56]}  d5 {[%clk 0:02:56]} 4. cxd5 {[%clk 0:02:50]}  Nxd5 {[%clk 0:02:46]} 5. e4 {[%clk 0:02:48]}  Nxc3 {[%clk 0:02:46]} 6. bxc3 {[%clk 0:02:48]}  c5 {[%clk 0:02:47]} 7. Rb1 {[%clk 0:02:48]}  Be7 {[%clk 0:02:47]} 8. Nf3 {[%clk 0:02:48]}  O-O {[%clk 0:02:47]} 9. h4 {[%clk 0:02:48]}  b6 {[%clk 0:02:44]} 10. h5 {[%clk 0:02:46]}  h6 {[%clk 0:02:39]} 11. Bd3 {[%clk 0:02:37]}  cxd4 {[%clk 0:02:38]} 12. cxd4 {[%clk 0:02:36]}  Ba6 {[%clk 0:02:38]} 13. Rh3 {[%clk 0:02:33]}  Bxd3 {[%clk 0:02:37]} 14. Qxd3 {[%clk 0:02:33]}  Nc6 {[%clk 0:02:33]} 15. Rg3 {[%clk 0:02:32]}  Kh8 {[%clk 0:02:31]} 16. Qd2 {[%clk 0:02:13]}  f5 {[%clk 0:02:23]} 17. Rxg7 {[%clk 0:02:06]}  Kxg7 {[%clk 0:02:17]} 18. Qxh6+ {[%clk 0:02:06]}  Kg8 {[%clk 0:02:18]} 19. Qxe6+ {[%clk 0:01:40]}  Kh8 {[%clk 0:02:18]} 20. Qh6+ {[%clk 0:01:28]}  Kg8 {[%clk 0:02:17]} 21. Qxc6 {[%clk 0:01:24]}  fxe4 {[%clk 0:02:04]} 22. Qxe4 {[%clk 0:01:06]}  Qe8 {[%clk 0:01:58]} 23. Kf1 {[%clk 0:01:02]}  Bf6 {[%clk 0:01:52]} 24. Qg4+ {[%clk 0:00:53]}  Kh8 {[%clk 0:01:49]} 25. Bg5 {[%clk 0:00:51]}  Rc8 {[%clk 0:01:04]} 26. Bxf6+ {[%clk 0:00:41]}  Rxf6 {[%clk 0:01:05]} 27. Re1 {[%clk 0:00:41]}  Qb5+ {[%clk 0:01:01]} 28. Kg1 {[%clk 0:00:41]}  Qf5 {[%clk 0:01:02]} 29. Qxf5 {[%clk 0:00:28]}  Rxf5 {[%clk 0:01:03]} 30. Re7 {[%clk 0:00:19]}  Rxh5 {[%clk 0:01:00]} 31. g3 {[%clk 0:00:18]}  Rh7 {[%clk 0:00:55]} 32. Re2 {[%clk 0:00:16]}  Rhc7 {[%clk 0:00:51]} 33. d5 {[%clk 0:00:16]}  Rd8 {[%clk 0:00:46]} 34. Re5 {[%clk 0:00:14]}  Rcd7 {[%clk 0:00:46]} 35. Ng5 {[%clk 0:00:12]}  Rxd5 {[%clk 0:00:39]} 36. Re7 {[%clk 0:00:07]}  Rxg5 {[%clk 0:00:38]} 0-1


[Site "https://www.chess.com"]

[Event "Titled Tuesday Blitz July 13 2021"]
[White "Abdusattorov, Nodirbek"]
[Black "Matinian, Nikita"]
[WhiteFideId "14204118"]
[BlackFideId "24129100"]
[WhiteElo "2662"]
[BlackElo "2410"]
[Result "1-0"]
[Round "10"]
[TimeControl "180+1"]
[Date "2021.07.13"]
[WhiteClock "0:00:54"]
[BlackClock "0:00:24"]

1. e4 {[%clk 0:03:00]}  e5 {[%clk 0:03:00]} 2. Nf3 {[%clk 0:03:00]}  Nc6 {[%clk 0:03:00]} 3. Bb5 {[%clk 0:03:00]}  a6 {[%clk 0:03:00]} 4. Bxc6 {[%clk 0:03:00]}  dxc6 {[%clk 0:03:00]} 5. O-O {[%clk 0:03:01]}  Bd6 {[%clk 0:02:59]} 6. d4 {[%clk 0:03:01]}  exd4 {[%clk 0:03:00]} 7. Qxd4 {[%clk 0:03:01]}  f6 {[%clk 0:03:00]} 8. Nbd2 {[%clk 0:02:56]}  Be6 {[%clk 0:02:58]} 9. Qc3 {[%clk 0:02:54]}  Ne7 {[%clk 0:02:54]} 10. Nc4 {[%clk 0:02:54]}  Bxc4 {[%clk 0:02:47]} 11. Qxc4 {[%clk 0:02:54]}  Qd7 {[%clk 0:02:46]} 12. Be3 {[%clk 0:02:49]}  O-O-O {[%clk 0:02:42]} 13. Rad1 {[%clk 0:02:43]}  Ng6 {[%clk 0:02:41]} 14. Nd4 {[%clk 0:02:11]}  Nh4 {[%clk 0:01:54]} 15. Qe6 {[%clk 0:01:54]}  Rhe8 {[%clk 0:01:49]} 16. Qxd7+ {[%clk 0:01:55]}  Rxd7 {[%clk 0:01:50]} 17. g3 {[%clk 0:01:48]}  Ng6 {[%clk 0:01:35]} 18. f3 {[%clk 0:01:48]}  Ne5 {[%clk 0:01:27]} 19. b3 {[%clk 0:01:18]}  Bb4 {[%clk 0:01:26]} 20. Kf2 {[%clk 0:01:03]}  Red8 {[%clk 0:01:18]} 21. Ke2 {[%clk 0:01:03]}  c5 {[%clk 0:00:54]} 22. Ne6 {[%clk 0:01:03]}  Rxd1 {[%clk 0:00:51]} 23. Rxd1 {[%clk 0:01:04]}  Rxd1 {[%clk 0:00:50]} 24. Kxd1 {[%clk 0:01:05]}  Nxf3 {[%clk 0:00:50]} 25. h4 {[%clk 0:01:05]}  g6 {[%clk 0:00:29]} 26. Bxc5 {[%clk 0:00:54]}  Bxc5 {[%clk 0:00:24]} 27. Nxc5 {[%clk 0:00:54]} 1-0


[Site "https://www.chess.com"]

[Event "Titled Tuesday Blitz July 13 2021"]
[White "Alavkin, Arseny"]
[Black "Starozhilov, Leonid"]
[WhiteFideId "4120612"]
[BlackFideId "14106752"]
[WhiteElo "2401"]
[BlackElo "2414"]
[Result "0-1"]
[Round "10"]
[TimeControl "180+1"]
[Date "2021.07.13"]
[WhiteClock "0:00:13"]
[BlackClock "0:00:05"]

1. e4 {[%clk 0:03:00]}  g6 {[%clk 0:02:55]} 2. d4 {[%clk 0:03:00]}  Bg7 {[%clk 0:02:55]} 3. Nc3 {[%clk 0:03:01]}  d6 {[%clk 0:02:55]} 4. Be3 {[%clk 0:03:01]}  a6 {[%clk 0:02:55]} 5. f3 {[%clk 0:03:01]}  b5 {[%clk 0:02:55]} 6. h4 {[%clk 0:03:01]}  h5 {[%clk 0:02:55]} 7. Nh3 {[%clk 0:03:02]}  Bxh3 {[%clk 0:02:54]} 8. Rxh3 {[%clk 0:03:03]}  Nd7 {[%clk 0:02:53]} 9. Qd2 {[%clk 0:03:03]}  Ngf6 {[%clk 0:02:53]} 10. O-O-O {[%clk 0:03:02]}  c6 {[%clk 0:02:53]} 11. Kb1 {[%clk 0:03:02]}  Qc7 {[%clk 0:02:53]} 12. Rh1 {[%clk 0:03:01]}  c5 {[%clk 0:02:35]} 13. g3 {[%clk 0:02:48]}  O-O {[%clk 0:02:25]} 14. Bg2 {[%clk 0:02:13]}  Nb6 {[%clk 0:01:54]} 15. dxc5 {[%clk 0:01:54]}  Nc4 {[%clk 0:01:52]} 16. Qf2 {[%clk 0:01:51]}  dxc5 {[%clk 0:01:25]} 17. Bxc5 {[%clk 0:01:52]}  Rfc8 {[%clk 0:01:22]} 18. Bd4 {[%clk 0:01:51]}  e5 {[%clk 0:01:16]} 19. Be3 {[%clk 0:01:51]}  Nxb2 {[%clk 0:01:12]} 20. Kxb2 {[%clk 0:01:30]}  Qxc3+ {[%clk 0:01:12]} 21. Kb1 {[%clk 0:01:30]}  Qb4+ {[%clk 0:01:09]} 22. Ka1 {[%clk 0:01:30]}  Qc3+ {[%clk 0:01:05]} 23. Kb1 {[%clk 0:01:30]}  Rc4 {[%clk 0:01:06]} 24. Rd3 {[%clk 0:01:23]}  Rb4+ {[%clk 0:01:02]} 25. Kc1 {[%clk 0:01:24]}  Qb2+ {[%clk 0:00:58]} 26. Kd2 {[%clk 0:01:22]}  Rc8 {[%clk 0:00:58]} 27. Rc1 {[%clk 0:01:19]}  Rbc4 {[%clk 0:00:57]} 28. Kd1 {[%clk 0:01:14]}  Qxa2 {[%clk 0:00:54]} 29. Bf1 {[%clk 0:01:13]}  Bf8 {[%clk 0:00:48]} 30. Bg5 {[%clk 0:01:09]}  Nh7 {[%clk 0:00:37]} 31. Be3 {[%clk 0:01:06]}  Qb2 {[%clk 0:00:31]} 32. g4 {[%clk 0:01:03]}  hxg4 {[%clk 0:00:20]} 33. fxg4 {[%clk 0:01:04]}  Ba3 {[%clk 0:00:21]} 34. Rd7 {[%clk 0:00:42]}  Rd4+ {[%clk 0:00:07]} 35. Rxd4 {[%clk 0:00:32]}  exd4 {[%clk 0:00:07]} 36. Bh6 {[%clk 0:00:29]}  Qa2 {[%clk 0:00:06]} 37. Bd3 {[%clk 0:00:28]}  Bxc1 {[%clk 0:00:06]} 38. Bxc1 {[%clk 0:00:29]}  Qe6 {[%clk 0:00:06]} 39. Qf4 {[%clk 0:00:24]}  Nf6 {[%clk 0:00:06]} 40. Be2 {[%clk 0:00:23]}  Nxe4 {[%clk 0:00:04]} 41. Bf3 {[%clk 0:00:24]}  Nc3+ {[%clk 0:00:05]} 42. Kd2 {[%clk 0:00:24]}  Re8 {[%clk 0:00:04]} 43. Kd3 {[%clk 0:00:22]}  Nd5 {[%clk 0:00:03]} 44. Qxd4 {[%clk 0:00:19]}  Nf6 {[%clk 0:00:03]} 45. Bg5 {[%clk 0:00:17]}  Nd7 {[%clk 0:00:02]} 46. Kc3 {[%clk 0:00:11]}  Qc4+ {[%clk 0:00:02]} 47. Qxc4 {[%clk 0:00:11]}  bxc4 {[%clk 0:00:03]} 48. Kxc4 {[%clk 0:00:12]}  Ne5+ {[%clk 0:00:03]} 49. Kd5 {[%clk 0:00:12]}  Nxf3 {[%clk 0:00:04]} 50. h5 {[%clk 0:00:13]}  Nxg5 {[%clk 0:00:05]} 51. Kd6 {[%clk 0:00:13]}  gxh5 {[%clk 0:00:05]} 0-1


[Site "https://www.chess.com"]

[Event "Titled Tuesday Blitz July 13 2021"]
[White "Aldokhin, Ivan"]
[Black "Dudzinski, Pawel"]
[WhiteFideId "24115720"]
[BlackFideId "1117890"]
[WhiteElo "2306"]
[BlackElo "2193"]
[Result "1/2-1/2"]
[Round "10"]
[TimeControl "180+1"]
[Date "2021.07.13"]
[WhiteClock "0:00:07"]
[BlackClock "0:00:11"]

1. e4 {[%clk 0:03:00]}  c6 {[%clk 0:02:56]} 2. Nf3 {[%clk 0:03:01]}  d5 {[%clk 0:02:57]} 3. Nc3 {[%clk 0:03:01]}  dxe4 {[%clk 0:02:53]} 4. Nxe4 {[%clk 0:03:02]}  Nf6 {[%clk 0:02:54]} 5. Nxf6+ {[%clk 0:03:02]}  exf6 {[%clk 0:02:55]} 6. d4 {[%clk 0:03:02]}  Bd6 {[%clk 0:02:55]} 7. Be2 {[%clk 0:03:03]}  O-O {[%clk 0:02:55]} 8. O-O {[%clk 0:03:04]}  Bg4 {[%clk 0:02:56]} 9. c3 {[%clk 0:03:03]}  Nd7 {[%clk 0:02:54]} 10. h3 {[%clk 0:03:03]}  Bh5 {[%clk 0:02:49]} 11. Nh4 {[%clk 0:03:03]}  Bg6 {[%clk 0:02:48]} 12. Nxg6 {[%clk 0:03:03]}  hxg6 {[%clk 0:02:49]} 13. Qb3 {[%clk 0:02:56]}  Qb6 {[%clk 0:02:45]} 14. Qc2 {[%clk 0:02:53]}  c5 {[%clk 0:02:43]} 15. Be3 {[%clk 0:02:48]}  cxd4 {[%clk 0:02:43]} 16. cxd4 {[%clk 0:02:47]}  Rac8 {[%clk 0:02:42]} 17. Qa4 {[%clk 0:02:38]}  Rc7 {[%clk 0:02:26]} 18. Bf3 {[%clk 0:02:34]}  Qxb2 {[%clk 0:02:16]} 19. Rab1 {[%clk 0:02:19]}  Qa3 {[%clk 0:02:16]} 20. Qxa3 {[%clk 0:02:16]}  Bxa3 {[%clk 0:02:16]} 21. Bf4 {[%clk 0:02:16]}  Rc2 {[%clk 0:02:12]} 22. Rxb7 {[%clk 0:02:15]}  Nb6 {[%clk 0:02:10]} 23. Rxa7 {[%clk 0:02:15]}  Rxa2 {[%clk 0:02:08]} 24. Bd6 {[%clk 0:02:12]}  Bxd6 {[%clk 0:01:56]} 25. Rxa2 {[%clk 0:02:12]}  Rd8 {[%clk 0:01:55]} 26. Ra7 {[%clk 0:02:08]}  f5 {[%clk 0:01:54]} 27. Rb1 {[%clk 0:02:05]}  Nc4 {[%clk 0:01:45]} 28. Rbb7 {[%clk 0:02:05]}  Rf8 {[%clk 0:01:41]} 29. Rxf7 {[%clk 0:01:59]}  Rxf7 {[%clk 0:01:36]} 30. Bd5 {[%clk 0:01:59]}  Nd2 {[%clk 0:01:32]} 31. Rxf7 {[%clk 0:01:57]}  Kh7 {[%clk 0:01:32]} 32. Rd7 {[%clk 0:01:55]}  Bb4 {[%clk 0:01:30]} 33. h4 {[%clk 0:01:52]}  Kh6 {[%clk 0:01:28]} 34. Rd8 {[%clk 0:01:49]}  g5 {[%clk 0:01:28]} 35. Rb8 {[%clk 0:01:38]}  Be7 {[%clk 0:01:25]} 36. Rh8+ {[%clk 0:01:33]}  Kg6 {[%clk 0:01:24]} 37. h5+ {[%clk 0:01:33]}  Kf6 {[%clk 0:01:25]} 38. Ra8 {[%clk 0:01:33]}  g4 {[%clk 0:01:22]} 39. Ra2 {[%clk 0:01:20]}  Bb4 {[%clk 0:01:22]} 40. Ra6+ {[%clk 0:01:13]}  Kg5 {[%clk 0:01:21]} 41. Bf7 {[%clk 0:01:10]}  Bc3 {[%clk 0:01:11]} 42. Rg6+ {[%clk 0:01:02]}  Kf4 {[%clk 0:01:09]} 43. Rxg7 {[%clk 0:00:49]}  Bxd4 {[%clk 0:01:08]} 44. h6 {[%clk 0:00:50]}  Ne4 {[%clk 0:01:04]} 45. g3+ {[%clk 0:00:33]}  Nxg3 {[%clk 0:00:43]} 46. Kg2 {[%clk 0:00:33]}  Ne4 {[%clk 0:00:43]} 47. Be6 {[%clk 0:00:31]}  Bxg7 {[%clk 0:00:18]} 48. hxg7 {[%clk 0:00:29]}  Nf6 {[%clk 0:00:19]} 49. g8=Q {[%clk 0:00:20]}  Nxg8 {[%clk 0:00:19]} 50. Bxg8 {[%clk 0:00:21]}  Kg5 {[%clk 0:00:20]} 51. Be6 {[%clk 0:00:17]}  f4 {[%clk 0:00:20]} 52. Bc8 {[%clk 0:00:14]}  Kh4 {[%clk 0:00:19]} 53. Bd7 {[%clk 0:00:14]}  Kg5 {[%clk 0:00:19]} 54. Kf1 {[%clk 0:00:14]}  Kh4 {[%clk 0:00:11]} 55. Ke2 {[%clk 0:00:10]}  f3+ {[%clk 0:00:10]} 56. Ke3 {[%clk 0:00:07]}  g3 {[%clk 0:00:11]} 57. Kxf3 {[%clk 0:00:07]}  gxf2 {[%clk 0:00:11]} 58. Kxf2 {[%clk 0:00:07]} 1/2-1/2


[Site "https://www.chess.com"]

[Event "Titled Tuesday Blitz July 13 2021"]
[White "Aleksandr_Kozak"]
[Black "Nozdrachev, Leonid"]
[BlackFideId "24113433"]
[WhiteElo "2418"]
[BlackElo "2221"]
[Result "1-0"]
[Round "10"]
[TimeControl "180+1"]
[Date "2021.07.13"]
[WhiteClock "0:01:32"]
[BlackClock "0:01:47"]

1. e4 {[%clk 0:03:00]}  d6 {[%clk 0:03:00]} 2. d4 {[%clk 0:03:00]}  Nf6 {[%clk 0:03:01]} 3. f3 {[%clk 0:02:51]}  e5 {[%clk 0:03:02]} 4. dxe5 {[%clk 0:02:46]}  dxe5 {[%clk 0:03:03]} 5. Qxd8+ {[%clk 0:02:46]}  Kxd8 {[%clk 0:03:04]} 6. Bc4 {[%clk 0:02:46]}  Be6 {[%clk 0:03:02]} 7. Bxe6 {[%clk 0:02:46]}  fxe6 {[%clk 0:03:03]} 8. Be3 {[%clk 0:02:46]}  Nbd7 {[%clk 0:03:03]} 9. Nc3 {[%clk 0:02:44]}  Bc5 {[%clk 0:03:03]} 10. Bxc5 {[%clk 0:02:43]}  Nxc5 {[%clk 0:03:04]} 11. O-O-O {[%clk 0:02:41]}  Ke7 {[%clk 0:03:05]} 12. Nge2 {[%clk 0:02:40]}  g5 {[%clk 0:03:04]} 13. Nb5 {[%clk 0:02:33]}  Ne8 {[%clk 0:02:55]} 14. h4 {[%clk 0:02:30]}  g4 {[%clk 0:02:53]} 15. b4 {[%clk 0:02:27]}  Na6 {[%clk 0:02:48]} 16. a3 {[%clk 0:02:23]}  c6 {[%clk 0:02:47]} 17. Nbc3 {[%clk 0:02:22]}  gxf3 {[%clk 0:02:42]} 18. gxf3 {[%clk 0:02:22]}  Nd6 {[%clk 0:02:43]} 19. f4 {[%clk 0:02:21]}  Nc4 {[%clk 0:02:39]} 20. fxe5 {[%clk 0:02:20]}  Nxa3 {[%clk 0:02:38]} 21. Rhg1 {[%clk 0:02:12]}  Rhg8 {[%clk 0:02:38]} 22. Rg5 {[%clk 0:02:10]}  Nxb4 {[%clk 0:02:32]} 23. Rh5 {[%clk 0:02:01]}  Rg7 {[%clk 0:02:28]} 24. Nd4 {[%clk 0:01:59]}  Rd8 {[%clk 0:02:25]} 25. Rh6 {[%clk 0:01:55]}  Rxd4 {[%clk 0:02:20]} 26. Rxd4 {[%clk 0:01:54]}  Naxc2 {[%clk 0:02:19]} 27. Rd6 {[%clk 0:01:54]}  Rg1+ {[%clk 0:02:12]} 28. Kb2 {[%clk 0:01:52]}  Rg2 {[%clk 0:02:11]} 29. Rxh7+ {[%clk 0:01:46]}  Ke8 {[%clk 0:02:10]} 30. Rxe6+ {[%clk 0:01:46]}  Kd8 {[%clk 0:02:09]} 31. Rd6+ {[%clk 0:01:44]}  Kc8 {[%clk 0:02:09]} 32. Kb3 {[%clk 0:01:43]}  a5 {[%clk 0:02:07]} 33. e6 {[%clk 0:01:43]}  b5 {[%clk 0:02:01]} 34. Rdd7 {[%clk 0:01:40]}  Na1+ {[%clk 0:01:58]} 35. Ka3 {[%clk 0:01:36]}  Nbc2+ {[%clk 0:01:50]} 36. Kb2 {[%clk 0:01:33]}  b4 {[%clk 0:01:47]} 37. Rh8+ {[%clk 0:01:32]} 1-0


[Site "https://www.chess.com"]

[Event "Titled Tuesday Blitz July 13 2021"]
[White "Arabidze, Meri"]
[Black "Barp, Alberto"]
[WhiteFideId "13604040"]
[BlackFideId "872555"]
[WhiteElo "2432"]
[BlackElo "2229"]
[Result "1/2-1/2"]
[Round "10"]
[TimeControl "180+1"]
[Date "2021.07.13"]
[WhiteClock "0:00:05"]
[BlackClock "0:00:03"]

1. Nf3 {[%clk 0:03:00]}  d5 {[%clk 0:02:57]} 2. g3 {[%clk 0:03:01]}  Bg4 {[%clk 0:02:56]} 3. Bg2 {[%clk 0:03:00]}  Nd7 {[%clk 0:02:56]} 4. d4 {[%clk 0:03:00]}  e6 {[%clk 0:02:54]} 5. O-O {[%clk 0:03:01]}  c6 {[%clk 0:02:53]} 6. c4 {[%clk 0:03:00]}  Ngf6 {[%clk 0:02:52]} 7. b3 {[%clk 0:03:01]}  Bd6 {[%clk 0:02:51]} 8. Bb2 {[%clk 0:03:01]}  O-O {[%clk 0:02:51]} 9. Nbd2 {[%clk 0:03:01]}  a5 {[%clk 0:02:46]} 10. a3 {[%clk 0:03:01]}  a4 {[%clk 0:02:38]} 11. b4 {[%clk 0:02:58]}  b5 {[%clk 0:02:38]} 12. c5 {[%clk 0:02:55]}  Bc7 {[%clk 0:02:30]} 13. Ne5 {[%clk 0:02:52]}  Nxe5 {[%clk 0:02:28]} 14. dxe5 {[%clk 0:02:53]}  Nd7 {[%clk 0:02:29]} 15. f4 {[%clk 0:02:53]}  f6 {[%clk 0:02:22]} 16. h3 {[%clk 0:02:44]}  Bh5 {[%clk 0:02:19]} 17. g4 {[%clk 0:02:38]}  Bg6 {[%clk 0:02:10]} 18. f5 {[%clk 0:02:37]}  exf5 {[%clk 0:01:56]} 19. gxf5 {[%clk 0:02:37]}  Bh5 {[%clk 0:01:56]} 20. e6 {[%clk 0:02:33]}  Ne5 {[%clk 0:01:51]} 21. Nf3 {[%clk 0:02:23]}  Bxf3 {[%clk 0:01:49]} 22. Bxf3 {[%clk 0:02:15]}  Nc4 {[%clk 0:01:44]} 23. Bd4 {[%clk 0:02:12]}  Be5 {[%clk 0:01:29]} 24. e3 {[%clk 0:02:00]}  Qc7 {[%clk 0:01:24]} 25. Qe1 {[%clk 0:01:34]}  Bxd4 {[%clk 0:01:12]} 26. exd4 {[%clk 0:01:34]}  Qf4 {[%clk 0:01:12]} 27. Kh1 {[%clk 0:01:11]}  Qxf5 {[%clk 0:00:55]} 28. Bg4 {[%clk 0:00:59]}  Qe4+ {[%clk 0:00:35]} 29. Qxe4 {[%clk 0:00:59]}  dxe4 {[%clk 0:00:36]} 30. Bf5 {[%clk 0:00:43]}  e3 {[%clk 0:00:19]} 31. Rfe1 {[%clk 0:00:41]}  Rae8 {[%clk 0:00:17]} 32. Kg2 {[%clk 0:00:26]}  g6 {[%clk 0:00:17]} 33. Bd3 {[%clk 0:00:26]}  Rxe6 {[%clk 0:00:15]} 34. Bxc4 {[%clk 0:00:26]}  bxc4 {[%clk 0:00:16]} 35. Rac1 {[%clk 0:00:26]}  Re4 {[%clk 0:00:13]} 36. Rxc4 {[%clk 0:00:23]}  Rfe8 {[%clk 0:00:12]} 37. Re2 {[%clk 0:00:20]}  f5 {[%clk 0:00:12]} 38. b5 {[%clk 0:00:18]}  cxb5 {[%clk 0:00:11]} 39. Rb4 {[%clk 0:00:19]}  f4 {[%clk 0:00:09]} 40. Kf3 {[%clk 0:00:18]}  Kf7 {[%clk 0:00:06]} 41. c6 {[%clk 0:00:16]}  g5 {[%clk 0:00:06]} 42. Rxb5 {[%clk 0:00:12]}  Rxd4 {[%clk 0:00:06]} 43. Rxg5 {[%clk 0:00:12]}  Rc8 {[%clk 0:00:06]} 44. Rf5+ {[%clk 0:00:12]}  Ke6 {[%clk 0:00:06]} 45. Rxf4 {[%clk 0:00:13]}  Rxf4+ {[%clk 0:00:05]} 46. Kxf4 {[%clk 0:00:14]}  Rxc6 {[%clk 0:00:06]} 47. Rxe3+ {[%clk 0:00:14]}  Kd5 {[%clk 0:00:07]} 48. Re5+ {[%clk 0:00:14]}  Kc4 {[%clk 0:00:05]} 49. Re3 {[%clk 0:00:13]}  Rb6 {[%clk 0:00:03]} 50. Kg5 {[%clk 0:00:12]}  Rb3 {[%clk 0:00:02]} 51. Re4+ {[%clk 0:00:12]}  Kb5 {[%clk 0:00:02]} 52. Re5+ {[%clk 0:00:12]}  Kc6 {[%clk 0:00:03]} 53. Re6+ {[%clk 0:00:11]}  Kd5 {[%clk 0:00:02]} 54. Rh6 {[%clk 0:00:10]}  Rxa3 {[%clk 0:00:02]} 55. Rxh7 {[%clk 0:00:10]}  Rg3+ {[%clk 0:00:02]} 56. Kf4 {[%clk 0:00:10]}  Rg1 {[%clk 0:00:02]} 57. h4 {[%clk 0:00:09]}  a3 {[%clk 0:00:01]} 58. Ra7 {[%clk 0:00:10]}  Ra1 {[%clk 0:00:01]} 59. Kg5 {[%clk 0:00:06]}  Kc4 {[%clk 0:00:01]} 60. h5 {[%clk 0:00:06]}  Rg1+ {[%clk 0:00:01]} 61. Kf6 {[%clk 0:00:05]}  Kb3 {[%clk 0:00:02]} 62. h6 {[%clk 0:00:05]}  Rh1 {[%clk 0:00:02]} 63. Kg6 {[%clk 0:00:05]}  a2 {[%clk 0:00:03]} 64. Rxa2 {[%clk 0:00:04]}  Kxa2 {[%clk 0:00:04]} 65. h7 {[%clk 0:00:05]}  Rxh7 {[%clk 0:00:03]} 66. Kxh7 {[%clk 0:00:05]} 1/2-1/2


[Site "https://www.chess.com"]

[Event "Titled Tuesday Blitz July 13 2021"]
[White "Araujo Filho, Luiz Antonio Coel"]
[Black "ketster"]
[WhiteFideId "2130661"]
[WhiteElo "2263"]
[BlackElo "2448"]
[Result "0-1"]
[Round "10"]
[TimeControl "180+1"]
[Date "2021.07.13"]
[WhiteClock "0:00:05"]
[BlackClock "0:00:48"]

1. d4 {[%clk 0:03:00]}  Nf6 {[%clk 0:02:58]} 2. Nf3 {[%clk 0:02:58]}  d5 {[%clk 0:02:57]} 3. e3 {[%clk 0:02:57]}  e6 {[%clk 0:02:50]} 4. Bd3 {[%clk 0:02:57]}  c5 {[%clk 0:02:50]} 5. c3 {[%clk 0:02:57]}  Nc6 {[%clk 0:02:49]} 6. Nbd2 {[%clk 0:02:57]}  Bd6 {[%clk 0:02:46]} 7. Qe2 {[%clk 0:02:56]}  O-O {[%clk 0:02:39]} 8. dxc5 {[%clk 0:02:56]}  Bxc5 {[%clk 0:02:38]} 9. e4 {[%clk 0:02:57]}  dxe4 {[%clk 0:02:35]} 10. Nxe4 {[%clk 0:02:58]}  Nxe4 {[%clk 0:02:33]} 11. Bxe4 {[%clk 0:02:59]}  f5 {[%clk 0:02:24]} 12. Bc2 {[%clk 0:02:58]}  e5 {[%clk 0:02:21]} 13. Qc4+ {[%clk 0:02:58]}  Kh8 {[%clk 0:02:20]} 14. Qxc5 {[%clk 0:02:58]}  e4 {[%clk 0:02:19]} 15. Nd4 {[%clk 0:02:58]}  Ne7 {[%clk 0:02:17]} 16. Bg5 {[%clk 0:02:53]}  Re8 {[%clk 0:02:15]} 17. Ba4 {[%clk 0:02:19]}  Bd7 {[%clk 0:02:14]} 18. Bxd7 {[%clk 0:01:35]}  Qxd7 {[%clk 0:02:15]} 19. Bxe7 {[%clk 0:01:32]}  Rxe7 {[%clk 0:02:13]} 20. Qxf5 {[%clk 0:01:31]}  Qd6 {[%clk 0:02:09]} 21. O-O {[%clk 0:01:28]}  Rae8 {[%clk 0:02:09]} 22. Rad1 {[%clk 0:01:25]}  Qh6 {[%clk 0:02:09]} 23. Rde1 {[%clk 0:01:11]}  Re5 {[%clk 0:02:08]} 24. Qg4 {[%clk 0:00:49]}  Qf6 {[%clk 0:02:01]} 25. Re3 {[%clk 0:00:36]}  h6 {[%clk 0:01:57]} 26. Rfe1 {[%clk 0:00:34]}  Rg5 {[%clk 0:01:42]} 27. Qh3 {[%clk 0:00:27]}  Rf8 {[%clk 0:01:39]} 28. R1e2 {[%clk 0:00:25]}  Re5 {[%clk 0:01:20]} 29. Qg4 {[%clk 0:00:20]}  h5 {[%clk 0:01:14]} 30. Qh3 {[%clk 0:00:12]}  Qh6 {[%clk 0:01:10]} 31. g3 {[%clk 0:00:08]}  Qg6 {[%clk 0:01:04]} 32. Qg2 {[%clk 0:00:07]}  Rfe8 {[%clk 0:01:02]} 33. Nc2 {[%clk 0:00:06]}  Qc6 {[%clk 0:00:59]} 34. h4 {[%clk 0:00:05]}  Qc4 {[%clk 0:00:58]} 35. a3 {[%clk 0:00:04]}  a5 {[%clk 0:00:57]} 36. Nd4 {[%clk 0:00:04]}  Qd5 {[%clk 0:00:56]} 37. Nc2 {[%clk 0:00:03]}  b5 {[%clk 0:00:54]} 38. Nd4 {[%clk 0:00:03]}  b4 {[%clk 0:00:54]} 39. axb4 {[%clk 0:00:03]}  axb4 {[%clk 0:00:54]} 40. cxb4 {[%clk 0:00:03]}  Qxd4 {[%clk 0:00:54]} 41. b5 {[%clk 0:00:04]}  Qb4 {[%clk 0:00:52]} 42. b6 {[%clk 0:00:04]}  Qxb6 {[%clk 0:00:50]} 43. Rxe4 {[%clk 0:00:04]}  Rxe4 {[%clk 0:00:48]} 44. Rxe4 {[%clk 0:00:05]}  Rf8 {[%clk 0:00:48]} 45. Re2 {[%clk 0:00:05]}  Qb5 {[%clk 0:00:48]} 46. Kh2 {[%clk 0:00:05]}  Qxe2 {[%clk 0:00:48]} 0-1


[Site "https://www.chess.com"]